bitfinex-derivatives/quotes_SOLF0:USTF0_20260114
["timestamp","ask_amount","ask_price","bid_price","bid_amount"]
[1768349075344,18.34485715,145.67,145.58,11.64384423]
[1768349075536,12.16265715,145.67,145.58,11.64384423]
[1768349077337,12.16265715,145.67,145.59,6.1853]
[1768349077544,12.16265715,145.67,145.59,18.58841522]
[1768349077943,12.16265715,145.67,145.59,12.40311522]
[1768349078640,12.16265715,145.67,145.56,12.40311522]
[1768349079749,18.34485715,145.67,145.57,6.1861]
[1768349080244,12.16265715,145.67,145.58,12.40311522]
[1768349081047,87.3614,145.69,145.59,12.40311522]
[1768349082148,99.52526161,145.69,145.59,12.40311522]
[1768349082850,99.52526161,145.69,145.6,6.1848]
[1768349083550,99.52526161,145.69,145.55,100.56034077]
[1768349083551,12.16386161,145.66,145.55,12.40311522]
[1768349084354,12.16386161,145.66,145.56,12.40311522]
[1768349084656,81.18,145.68,145.59,18.58841522]
[1768349086453,81.18,145.68,145.6,18.58801522]
[1768349088448,81.18,145.68,145.61,6.1845]
[1768349088655,81.18,145.68,145.61,18.58761522]
[1768349089456,12.16386161,145.69,145.61,18.58761522]
[1768349089953,12.16386161,145.68,145.55,12.40311522]
[1768349090861,12.16386161,145.68,145.57,6.1862]
[1768349091062,12.16386161,145.68,145.57,12.40311522]
[1768349091455,12.16386161,145.68,145.6,6.1849]
[1768349094159,12.16386161,145.68,145.59,12.40311522]
[1768349094561,12.16386161,145.67,145.58,6.1855]
[1768349095462,12.16386161,145.67,145.57,6.1862]
[1768349095463,12.16386161,145.66,145.57,6.1862]
[1768349095664,12.16386161,145.64,145.56,12.40311522]
[1768349095865,12.16386161,145.64,145.54,6.1874]
[1768349095866,12.16386161,145.63,145.54,6.1874]
[1768349098262,12.16386161,145.62,145.53,12.40311522]
[1768349098454,0.04454835,145.6,145.5,12.40311522]
[1768349098659,12.16386161,145.59,145.5,12.40311522]
[1768349099265,12.16386161,145.59,145.5,18.7394084]
[1768349099564,12.16386161,145.59,145.52,6.1883]
[1768349100564,12.16386161,145.59,145.5,18.7394084]
[1768349100764,12.16386161,145.59,145.51,12.40311522]
[1768349101164,12.16386161,145.59,145.51,18.7394084]
[1768349101362,12.16386161,145.59,145.51,24.9281084]
[1768349101561,12.16386161,145.59,145.5,6.33629318]
[1768349101761,12.16386161,145.59,145.49,18.7394084]
[1768349101965,12.16386161,145.59,145.5,18.7394084]
[1768349102165,12.16386161,145.59,145.51,6.33629318]
[1768349102865,12.16386161,145.59,145.51,12.52499318]
[1768349103767,12.16386161,145.59,145.51,6.1887]
[1768349104170,12.16386161,145.62,145.52,18.59131522]
[1768349104864,18.34866161,145.61,145.52,18.59131522]
[1768349105268,11.95900402,145.58,145.49,6.33629318]
[1768349105464,11.95900402,145.56,145.46,6.33629318]
[1768349105665,11.95900402,145.56,145.43,18.52399746]
[1768349106060,11.95900402,145.56,145.44,12.18770428]
[1768349106264,6.1876,145.54,145.44,12.18770428]
[1768349106469,11.95900402,145.53,145.44,12.18770428]
[1768349106868,7.01736553,145.56,145.42,12.52859318]
[1768349106869,11.95900402,145.52,145.42,12.52859318]
[1768349107065,11.95900402,145.56,145.47,0.04377575]
[1768349107467,81.2,145.55,145.47,6.23407575]
[1768349107765,81.2,145.55,145.47,6.1903]
[1768349109074,81.2,145.55,145.45,18.37870428]
[1768349109075,99.34620402,145.55,145.45,18.37870428]
[1768349109272,11.95900402,145.54,145.45,18.37870428]
[1768349110072,11.95900402,145.54,145.46,6.1908]
[1768349111474,11.95900402,145.54,145.45,12.18770428]
[1768349112677,11.95900402,145.54,145.46,18.37850428]
[1768349114077,11.95900402,145.6,145.5,12.18770428]
[1768349114578,6.1864,145.57,145.5,12.18770428]
[1768349114876,18.14540402,145.57,145.48,6.19]
[1768349115069,11.95900402,145.57,145.48,6.19]
[1768349117177,12.12060493,145.56,145.47,12.18770428]
[1768349117369,12.12060493,145.56,145.44,18.58124412]
[1768349117572,12.12060493,145.56,145.44,12.24495094]
[1768349118077,96.2284,145.58,145.44,12.24495094]
[1768349118078,18.30790493,145.55,145.46,6.1908]
[1768349118371,12.12060493,145.54,145.46,6.1908]
[1768349119171,12.12060493,145.53,145.44,6.1915]
[1768349120178,12.12060493,145.52,145.42,18.43725094]
[1768349120678,12.12060493,145.48,145.39,18.43875094]
[1768349121181,12.12060493,145.48,145.39,12.24495094]
[1768349122171,18.31080493,145.48,145.39,12.24495094]
[1768349123173,12.12060493,145.47,145.39,12.24495094]
[1768349123378,12.12060493,145.46,145.36,12.24495094]
[1768349124369,12.12060493,145.45,145.36,18.43995094]
[1768349124775,12.12060493,145.45,145.36,12.24495094]
[1768349124974,12.12060493,145.44,145.33,12.24495094]
[1768349125774,12.12060493,145.43,145.33,18.44125094]
[1768349126378,12.12060493,145.42,145.33,18.44125094]
[1768349128481,12.12060493,145.41,145.31,6.1971]
[1768349128681,12.12060493,145.41,145.31,18.44205094]
[1768349128882,12.12060493,145.41,145.31,12.24495094]
[1768349129773,12.12060493,145.41,145.32,6.1967]
[1768349131485,12.12060493,145.4,145.31,12.24495094]
[1768349132988,18.31420493,145.4,145.31,12.24495094]
[1768349133586,12.12060493,145.4,145.31,18.44215094]
[1768349133775,12.12060493,145.4,145.32,12.24495094]
[1768349133981,81.26,145.42,145.32,12.24495094]
[1768349134279,93.38060493,145.42,145.33,18.44135094]
[1768349134480,12.12060493,145.41,145.33,18.44135094]
[1768349135587,12.12060493,145.41,145.34,6.196]
[1768349136894,12.12060493,145.41,145.33,12.24495094]
[1768349137492,12.12060493,145.41,145.32,6.1966]
[1768349137889,13.50060493,145.41,145.26,12.39664831]
[1768349138089,12.12060493,145.41,145.26,12.39664831]
[1768349138588,13.25643252,145.37,145.28,6.1984]
[1768349138787,13.25643252,145.36,145.26,12.39664831]
[1768349139690,13.25643252,145.36,145.27,6.1989]
[1768349140198,13.25643252,145.36,145.27,18.59554831]
[1768349140387,13.25643252,145.36,145.28,6.1985]
[1768349141594,13.25643252,145.35,145.26,6.1991]
[1768349142395,13.25643252,145.35,145.24,12.39664831]
[1768349142891,19.45233252,145.35,145.24,18.59674831]
[1768349143084,13.25643252,145.34,145.24,12.39664831]
[1768349143487,13.25643252,145.34,145.26,6.1993]
[1768349144190,13.25643252,145.34,145.27,6.1988]
[1768349144394,13.25643252,145.37,145.27,12.39664831]
[1768349145593,81.3,145.38,145.27,12.39664831]
[1768349145594,13.25643252,145.36,145.27,12.39664831]
[1768349145794,13.25643252,145.34,145.21,12.39664831]
[1768349146094,96.3818,145.35,145.21,12.39664831]
[1768349146095,13.25643252,145.32,145.21,12.39664831]
[1768349146394,13.25643252,145.32,145.23,6.2006]
[1768349147696,13.25643252,145.3,145.21,18.59814831]
[1768349149298,13.25643252,145.3,145.22,6.201]
[1768349149499,13.25643252,145.3,145.21,12.39664831]
[1768349152402,94.57643252,145.33,145.22,12.39664831]
[1768349153297,100.77313252,145.33,145.24,12.39664831]
[1768349153502,94.59643252,145.34,145.26,12.44428783]
[1768349154696,94.59643252,145.34,145.26,12.39664831]
[1768349155497,13.25643252,145.33,145.23,12.39664831]
[1768349155898,13.30779595,145.31,145.23,12.39664831]
[1768349156802,19.50519595,145.31,145.23,12.39664831]
[1768349157704,13.30779595,145.31,145.23,12.39664831]
[1768349159306,13.25643252,145.29,145.2,12.39664831]
[1768349159693,13.25643252,145.29,145.17,12.39664831]
[1768349160300,0.05213394,145.24,145.17,12.39664831]
[1768349161099,0.05213394,145.24,145.17,18.59984831]
[1768349161503,13.25643252,145.23,145.14,12.39664831]
[1768349162300,0.04574424,145.2,145.14,12.39664831]
[1768349162901,0.04574424,145.2,145.16,6.2036]
[1768349163302,13.25643252,145.23,145.16,6.2036]
[1768349163509,19.45493252,145.29,145.18,12.39664831]
[1768349163805,13.25643252,145.29,145.18,12.39664831]
[1768349163994,13.25643252,145.29,145.19,12.39664831]
[1768349165906,13.25643252,145.29,145.2,6.2019]
[1768349166103,81.36,145.31,145.2,12.54147259]
[1768349166308,13.19537772,145.36,145.25,12.54147259]
[1768349166607,19.39087772,145.36,145.25,12.54147259]
[1768349167003,13.19537772,145.35,145.25,12.54147259]
[1768349167397,13.19537772,145.34,145.21,12.54147259]
[1768349167803,6.1973,145.32,145.23,6.2007]
[1768349169413,13.19537772,145.33,145.23,12.54147259]
[1768349169813,13.19537772,145.33,145.24,12.54147259]
[1768349170709,13.19537772,145.33,145.26,6.1992]
[1768349171214,19.38967772,145.39,145.29,6.198]
[1768349171715,13.19537772,145.38,145.29,6.198]
[1768349171909,13.19537772,145.38,145.27,18.74017259]
[1768349172608,13.19537772,145.37,145.27,18.74017259]
[1768349173421,13.19537772,145.37,145.28,6.1984]
[1768349174015,19.39027772,145.37,145.28,6.1984]
[1768349174315,13.19537772,145.36,145.28,6.1984]
[1768349175014,13.19537772,145.36,145.27,12.54147259]
[1768349175917,13.19537772,145.36,145.27,18.74027259]
[1768349179515,13.19537772,145.36,145.27,12.54147259]
[1768349179721,13.34485479,145.44,145.3,13.48254852]
[1768349179922,94.70485479,145.43,145.3,13.48254852]
[1768349180116,13.34485479,145.4,145.32,13.48254852]
[1768349181110,13.34485479,145.39,145.27,81.34]
[1768349181311,13.34485479,145.39,145.27,94.82254852]
[1768349181707,13.34485479,145.38,145.28,6.1984]
[1768349182011,13.34485479,145.38,145.27,94.82254852]
[1768349182621,13.34485479,145.37,145.27,13.48254852]
[1768349184020,19.53975479,145.37,145.28,6.1985]
[1768349184319,13.34485479,145.36,145.28,6.1985]
[1768349185323,15.04391727,145.36,145.28,6.1985]
[1768349187322,13.34485479,145.36,145.28,6.1985]
[1768349187719,13.34485479,145.36,145.27,13.48254852]
[1768349188121,13.34485479,145.34,145.24,13.48254852]
[1768349189426,13.34485479,145.32,145.23,4.33428777]
[1768349189624,13.34485479,145.32,145.22,19.68344852]
[1768349190324,13.34485479,145.31,145.22,19.68344852]
[1768349191825,13.34485479,145.3,145.22,19.68344852]
[1768349198032,13.53349353,145.29,145.22,13.48254852]
[1768349198432,13.53349353,145.29,145.19,13.68976237]
[1768349199135,13.53349353,145.29,145.21,13.68976237]
[1768349199437,13.53349353,145.32,145.22,13.68976237]
[1768349199633,13.53349353,145.32,145.25,19.88946237]
[1768349200235,13.53349353,145.35,145.25,13.68976237]
[1768349200636,13.53349353,145.35,145.26,6.1994]
[1768349200831,13.53349353,145.38,145.27,13.68976237]
[1768349201038,13.53349353,145.41,145.29,13.68976237]
[1768349201340,13.53349353,145.41,145.31,13.68976237]
[1768349202637,13.53349353,145.45,145.34,13.68976237]
[1768349203941,13.53349353,145.43,145.31,13.68976237]
[1768349204933,19.72619353,145.42,145.32,6.1966]
[1768349205138,19.72619353,145.42,145.32,19.88636237]
[1768349205438,19.72619353,145.42,145.33,19.88596237]
[1768349205439,13.53349353,145.42,145.33,19.88596237]
[1768349205639,13.53349353,145.42,145.33,13.68976237]
[1768349206037,13.53349353,145.41,145.32,6.1966]
[1768349206538,13.53349353,145.41,145.33,6.1963]
[1768349206731,13.53349353,145.41,145.33,13.68976237]
[1768349206935,13.53349353,145.46,145.33,13.68976237]
[1768349207443,13.53349353,145.44,145.36,1.69706647]
[1768349207738,96.2647,145.52,145.33,13.68976237]
[1768349207739,15.23056,145.54,145.44,13.68976237]
[1768349207940,13.53349353,145.54,145.46,1.69706647]
[1768349208336,13.53349353,145.54,145.46,15.38682884]
[1768349209342,13.53349353,145.54,145.46,13.68976237]
[1768349212437,13.53349353,145.58,145.47,13.68976237]
[1768349212842,13.53349353,145.58,145.48,13.68976237]
[1768349213843,13.53349353,145.58,145.48,19.87956237]
[1768349217943,13.53349353,145.58,145.5,13.68976237]
[1768349219851,13.53349353,145.58,145.48,13.68976237]
[1768349220446,13.53349353,145.56,145.48,13.68976237]
[1768349220646,13.53349353,145.55,145.44,18.01216486]
[1768349220852,13.53349353,145.53,145.44,4.32240249]
[1768349221042,6.1873,145.55,145.45,13.68976237]
[1768349221246,19.72079353,145.55,145.45,13.68976237]
[1768349222147,13.53349353,145.55,145.46,6.1908]
[1768349222355,87.4464,145.57,145.47,13.68976237]
[1768349222656,100.97989353,145.57,145.47,13.68976237]
[1768349222954,100.97989353,145.57,145.48,13.68976237]
[1768349223655,13.53349353,145.56,145.48,13.68976237]
[1768349224154,19.72039353,145.56,145.48,13.68976237]
[1768349224857,13.53349353,145.56,145.48,13.68976237]
[1768349225754,19.72039353,145.56,145.48,13.68976237]
[1768349227356,13.53349353,145.56,145.48,13.68976237]
[1768349229257,13.53349353,145.56,145.48,16.33634651]
[1768349230460,19.72039353,145.56,145.48,16.33634651]
[1768349230667,19.72039353,145.56,145.48,13.68976237]
[1768349235764,13.40531057,145.54,145.45,15.56575543]
[1768349235969,13.40531057,145.54,145.45,12.91917129]
[1768349236164,112.30629471,145.54,145.42,15.56575543]
[1768349236370,13.40531057,145.49,145.4,12.91917129]
[1768349236867,13.40531057,145.49,145.4,19.11257129]
[1768349237265,13.40531057,145.49,145.4,12.91917129]
[1768349237466,13.40531057,145.49,145.37,102.1887055]
[1768349237467,13.40531057,145.49,145.37,16.32149557]
[1768349237670,19.53579559,145.47,145.37,22.51619557]
[1768349237868,13.34519559,145.5,145.4,13.67491143]
[1768349238260,13.34519559,145.5,145.42,19.86741143]
[1768349239164,13.34519559,145.5,145.43,6.1921]
[1768349240768,13.34519559,145.5,145.45,0.04413189]
[1768349241774,19.58788026,145.49,145.39,16.32149557]
[1768349242166,19.53509559,145.49,145.39,16.32149557]
[1768349242769,19.53509559,145.49,145.4,6.1934]
[1768349243077,0.05091536,145.45,145.4,6.1934]
[1768349243776,0.05091536,145.45,145.4,19.86831143]
[1768349243969,0.05091536,145.45,145.37,13.67491143]
[1768349243970,13.34519559,145.45,145.37,13.67491143]
[1768349244172,13.34519559,145.45,145.41,0.04720326]
[1768349247373,13.34519559,145.48,145.41,0.04720326]
[1768349247579,97.23177973,145.51,145.41,13.72211469]
[1768349247981,13.34519559,145.5,145.41,13.67491143]
[1768349248476,13.34519559,145.5,145.45,0.04471881]
[1768349248676,13.39011178,145.47,145.38,13.67491143]
[1768349249094,13.34519559,145.47,145.38,13.67491143]
[1768349249478,19.53579559,145.47,145.38,19.86891143]
[1768349249777,15.99177973,145.47,145.35,13.67491143]
[1768349249977,0.04983848,145.44,145.35,13.67491143]
[1768349250379,13.34519559,145.44,145.35,13.67491143]
[1768349250577,13.34519559,145.44,145.33,81.26]
[1768349250776,13.34519559,145.4,145.32,13.67491143]
[1768349251076,19.53889559,145.4,145.29,16.32149557]
[1768349251282,19.53889559,145.4,145.29,13.67491143]
[1768349251482,13.34519559,145.4,145.29,13.67491143]
[1768349252081,13.34519559,145.4,145.33,0.04694762]
[1768349252685,184.60714626,145.46,145.33,0.04694762]
[1768349252686,13.34519559,145.43,145.33,13.72185905]
[1768349253186,13.34519559,145.43,145.33,13.67491143]
[1768349253875,13.34519559,145.43,145.3,13.67491143]
[1768349254784,13.34519559,145.41,145.3,13.67491143]
[1768349254979,13.0639029,145.45,145.32,13.71378826]
[1768349255184,94.3439029,145.45,145.32,13.71378826]
[1768349255787,13.0639029,145.43,145.33,19.90998826]
[1768349256180,13.0639029,145.43,145.33,13.71378826]
[1768349256383,13.0639029,145.43,145.36,6.1951]
[1768349256586,100.5355029,145.45,145.36,19.90888826]
[1768349256786,13.0639029,145.44,145.36,19.90888826]
[1768349257087,13.0639029,145.44,145.36,13.71378826]
[1768349257392,13.0639029,145.44,145.39,0.04474844]
[1768349258784,13.0639029,145.47,145.39,0.04474844]
[1768349259388,13.0639029,145.47,145.38,13.71378826]
[1768349259686,13.0639029,145.47,145.42,0.04746736]
[1768349263291,13.0639029,145.54,145.42,13.76125562]
[1768349263890,13.0639029,145.53,145.43,19.90528826]
[1768349264283,13.0639029,145.53,145.47,0.05104944]
[1768349267490,94.3439029,145.56,145.47,0.05104944]
[1768349267794,100.5301029,145.56,145.47,0.05104944]
[1768349268001,13.0639029,145.55,145.46,6.1901]
[1768349268495,19.2505029,145.55,145.46,6.1901]
[1768349268691,0.04925334,145.52,145.46,6.1901]
[1768349272191,0.04925334,145.52,145.46,19.90388826]
[1768349273792,13.0639029,145.58,145.48,13.71378826]
[1768349273995,13.0639029,145.58,145.49,16.36104983]
[1768349274196,13.0639029,145.58,145.49,13.71378826]
[1768349274899,13.0639029,145.58,145.5,6.1885]
[1768349275301,13.0639029,145.58,145.52,0.04909366]
[1768349276199,13.0639029,145.58,145.52,6.23659366]
[1768349276902,94.3239029,145.61,145.53,6.1872]
[1768349277591,13.0639029,145.61,145.54,6.1868]
[1768349277794,13.0639029,145.61,145.56,0.04537317]
[1768349282593,1.69278603,145.63,145.56,0.04537317]
[1768349282794,14.75668893,145.63,145.56,0.04537317]
[1768349282995,13.0639029,145.6,145.56,0.04537317]
[1768349283497,13.0639029,145.6,145.52,13.71378826]
[1768349284199,0.04412788,145.57,145.52,13.71378826]
[1768349284793,0.04412788,145.57,145.52,19.90148826]
[1768349284996,0.04412788,145.57,145.5,102.22626226]
[1768349284997,0.04412788,145.57,145.5,14.69547543]
[1768349285200,13.66231466,145.63,145.55,13.0026894]
[1768349285898,13.66231466,145.63,145.55,19.1889894]
[1768349287204,13.66231466,145.63,145.58,0.04941927]
[1768349292503,13.66231466,145.59,145.5,1.69278603]
[1768349292703,13.66231466,145.59,145.5,14.69547543]
[1768349293207,13.66231466,145.57,145.5,13.0026894]
[1768349293707,0.0486408,145.56,145.5,13.0026894]
[1768349293908,0.0486408,145.56,145.5,19.1910894]
[1768349294297,0.0486408,145.56,145.51,13.0026894]
[1768349294606,81.2,145.6,145.52,20.88307543]
[1768349295602,81.2,145.6,145.53,6.1872]
[1768349295808,81.2,145.6,145.55,0.04690624]
[1768349296201,13.66231466,145.61,145.55,0.04690624]
[1768349298505,81.2,145.64,145.56,6.1859]
[1768349298506,13.2897041,145.64,145.56,6.1859]
[1768349298707,14.98249013,145.64,145.55,12.68080313]
[1768349299208,13.2897041,145.64,145.56,1.69278603]
[1768349299405,13.2897041,145.64,145.56,7.87868603]
[1768349299806,13.2897041,145.64,145.59,0.04815968]
[1768349300207,96.18249013,145.67,145.59,0.04815968]
[1768349300507,13.2897041,145.66,145.59,0.04815968]
[1768349300711,13.2897041,145.71,145.59,12.68205657]
[1768349300900,13.2897041,145.71,145.62,1.69278603]
[1768349302202,14.98249013,145.71,145.58,12.63389689]
[1768349302408,13.2897041,145.68,145.59,14.32668292]
[1768349302607,13.2897041,145.68,145.65,0.04829729]
[1768349302908,13.2897041,145.68,145.61,7.87658603]
[1768349303503,13.2897041,145.68,145.65,0.04528311]
[1768349304108,13.2897041,145.68,145.59,18.81839689]
[1768349304109,13.33502127,145.68,145.59,18.81839689]
[1768349304304,13.2897041,145.66,145.57,1.69278603]
[1768349304800,13.2897041,145.64,145.56,12.63389689]
[1768349305608,0.04652377,145.61,145.56,12.63389689]
[1768349307907,0.04652377,145.61,145.56,18.81979689]
[1768349308608,0.04652377,145.61,145.57,6.1855]
[1768349308807,13.2897041,145.64,145.57,6.23036784]
[1768349310106,1.69278603,145.63,145.57,0.04486784]
[1768349310309,14.98249013,145.63,145.57,0.04486784]
[1768349310499,13.2897041,145.64,145.56,12.63389689]
[1768349310705,13.2897041,145.64,145.56,14.32668292]
[1768349311305,14.98249013,145.67,145.56,14.32668292]
[1768349311704,14.98249013,145.67,145.58,1.69278603]
[1768349311905,14.98249013,145.67,145.58,7.87788603]
[1768349312305,14.98249013,145.67,145.61,0.04410763]
[1768349313416,1.69278603,145.69,145.61,12.67800452]
[1768349313606,13.2897041,145.7,145.61,14.37079055]
[1768349313911,13.2897041,145.7,145.61,14.32668292]
[1768349314308,13.2897041,145.7,145.64,0.04600139]
[1768349317812,15.15831199,145.69,145.64,0.04600139]
[1768349320602,177.2938,145.74,145.52,96.254]
[1768349320603,13.46552596,145.66,145.58,13.86896457]
[1768349320804,13.46552596,145.63,145.55,13.86896457]
[1768349321918,13.46552596,145.63,145.56,6.186]
[1768349322218,13.46552596,145.66,145.57,13.86896457]
[1768349322519,15.15831199,145.66,145.58,20.05416457]
[1768349322819,15.15831199,145.66,145.58,21.7469506]
[1768349323615,15.15831199,145.66,145.59,6.1847]
[1768349323817,13.46552596,145.66,145.58,15.5617506]
[1768349324120,1.69278603,145.68,145.58,15.5617506]
[1768349324513,15.15831199,145.68,145.58,13.86896457]
[1768349324713,21.33931199,145.68,145.59,1.69278603]
[1768349325212,21.33931199,145.68,145.58,13.86896457]
[1768349325418,21.33931199,145.68,145.59,1.69278603]
[1768349326518,15.15831199,145.68,145.6,6.1843]
[1768349328420,13.46552596,145.65,145.56,13.86896457]
[1768349328620,13.46552596,145.65,145.58,1.69278603]
[1768349329424,13.46552596,145.68,145.58,16.9417506]
[1768349329720,13.46552596,145.68,145.6,1.69278603]
[1768349330219,13.46552596,145.68,145.62,0.04993522]
[1768349333319,19.64662596,145.68,145.62,0.04993522]
[1768349333520,13.46552596,145.67,145.62,0.04993522]
[1768349337230,15.15831199,145.67,145.62,0.04993522]
[1768349337523,19.64602596,145.7,145.62,0.04993522]
[1768349337725,13.46552596,145.7,145.62,0.04993522]
[1768349338125,13.46552596,145.7,145.61,1.69278603]
[1768349338324,21.31831199,145.72,145.61,1.69278603]
[1768349338524,21.31831199,145.72,145.65,0.04405307]
[1768349338821,6.1797,145.71,145.65,0.04405307]
[1768349339621,6.1797,145.71,145.61,1.69278603]
[1768349339622,1.69278603,145.68,145.6,6.1841]
[1768349340219,1.69278603,145.7,145.59,15.5617506]
[1768349340422,13.46552596,145.71,145.61,15.5617506]
[1768349340717,13.46552596,145.71,145.63,6.183]
[1768349341029,0.04746833,145.67,145.63,6.183]
[1768349341230,0.04746833,145.67,145.61,13.86896457]
[1768349341718,0.04746833,145.67,145.59,82.85278603]
[1768349342225,0.04746833,145.67,145.63,1.69278603]
[1768349342432,0.04746833,145.67,145.61,15.5617506]
[1768349342929,0.04746833,145.67,145.61,13.86896457]
[1768349343622,13.51299429,145.67,145.61,6.1836]
[1768349343824,13.51299429,145.67,145.58,95.02896457]
[1768349344319,13.46552596,145.67,145.59,13.86896457]
[1768349344620,13.46552596,145.67,145.6,6.1843]
[1768349344824,0.04977869,145.64,145.56,13.86896457]
[1768349345028,0.04977869,145.64,145.56,95.02896457]
[1768349345427,0.04977869,145.64,145.57,6.1856]
[1768349345628,0.04977869,145.64,145.56,95.02896457]
[1768349346334,0.04977869,145.64,145.57,6.1856]
[1768349348237,0.04977869,145.64,145.58,12.7191621]
[1768349348938,13.53173926,145.72,145.6,12.7191621]
[1768349349232,16.17387521,145.72,145.61,93.8791621]
[1768349349434,13.53173926,145.68,145.61,81.16]
[1768349349630,13.53173926,145.68,145.6,12.7191621]
[1768349349838,13.53173926,145.68,145.57,96.52129805]
[1768349350238,13.53173926,145.68,145.63,0.05084358]
[1768349350439,16.17387521,145.68,145.57,18.9044621]
[1768349350634,0.04580632,145.64,145.57,18.9044621]
[1768349351031,0.04580632,145.64,145.58,6.1851]
[1768349351631,0.04580632,145.64,145.57,12.7191621]
[1768349353842,13.53173926,145.66,145.6,6.1843]
[1768349354539,13.53173926,145.66,145.58,6.1849]
[1768349354737,13.53173926,145.66,145.58,12.7191621]
[1768349355636,13.53173926,145.66,145.61,0.04402142]
[1768349359848,19.89564283,145.69,145.61,0.04402142]
[1768349360336,13.71484283,145.68,145.61,0.04402142]
[1768349360537,13.71484283,145.67,145.61,0.04402142]
[1768349364854,6.1819,145.66,145.61,0.04402142]
[1768349366050,19.89634283,145.67,145.61,0.04402142]
[1768349366249,13.71484283,145.67,145.61,0.04402142]
[1768349366752,19.89674283,145.66,145.61,0.04402142]
[1768349367257,19.89674283,145.66,145.59,6.1847]
[1768349367655,19.89674283,145.66,145.62,0.04655334]
[1768349368155,19.89614283,145.68,145.62,0.04655334]
[1768349368653,13.71484283,145.67,145.62,0.04655334]
[1768349368855,19.89624283,145.67,145.62,0.04655334]
[1768349369451,6.1809,145.69,145.62,0.04655334]
[1768349369656,6.1809,145.69,145.62,13.48876798]
[1768349369963,19.89574283,145.69,145.62,13.48876798]
[1768349370159,13.71484283,145.68,145.62,0.04655334]
[1768349372160,13.71484283,145.72,145.63,13.44221464]
[1768349372764,13.71484283,145.66,145.57,13.44221464]
[1768349372966,13.71484283,145.63,145.51,97.24435059]
[1768349373264,96.1767,145.64,145.51,97.24435059]
[1768349373265,13.71484283,145.61,145.51,94.60221464]
[1768349373568,13.71484283,145.61,145.52,13.44221464]
[1768349373762,0.04733193,145.57,145.52,13.44221464]
[1768349374066,13.71484283,145.61,145.54,6.1868]
[1768349374866,13.71484283,145.61,145.52,13.44221464]
[1768349375266,13.71484283,145.61,145.52,19.62991464]
[1768349375666,13.71484283,145.61,145.55,0.04707275]
[1768349377668,13.11256787,145.58,145.5,6.1885]
[1768349377871,13.11256787,145.58,145.49,12.93659765]
[1768349378169,13.11256787,145.58,145.46,190.40819765]
[1768349378465,13.11256787,145.58,145.47,12.93659765]
[1768349378974,15.75470382,145.58,145.49,6.1888]
[1768349379266,0.04881284,145.54,145.49,6.1888]
[1768349379461,0.04881284,145.54,145.5,12.93659765]
[1768349379660,13.11256787,145.59,145.5,12.93659765]
[1768349379864,13.11256787,145.59,145.5,12.98260074]
[1768349380267,13.11256787,145.59,145.52,6.1876]
[1768349380466,2.64213595,145.65,145.52,12.93659765]
[1768349380973,2.64213595,145.65,145.57,0.04955097]
[1768349382072,8.82463595,145.65,145.57,0.04955097]
[1768349382473,10.7591925,145.64,145.57,0.04955097]
[1768349383674,10.78981846,145.63,145.57,0.04955097]
[1768349385675,10.84981491,145.62,145.57,0.04955097]
[1768349386174,10.84981491,145.62,145.52,6.1874]
[1768349386374,10.87995427,145.61,145.52,19.12399765]
[1768349386575,10.87995427,145.61,145.52,12.93659765]
[1768349386776,10.82978071,145.61,145.52,12.93659765]
[1768349387670,0.04907113,145.58,145.52,12.93659765]
[1768349389265,10.82978071,145.61,145.52,19.12419765]
[1768349390175,10.82978071,145.61,145.53,12.93659765]
[1768349390568,10.82978071,145.61,145.55,0.05069122]
[1768349394579,17.01378071,145.61,145.55,0.05069122]
[1768349395070,10.82978071,145.61,145.55,0.05069122]
[1768349395276,6.1834,145.63,145.55,12.98728887]
[1768349395474,11.08097334,145.62,145.55,0.05069122]
[1768349395871,11.08097334,145.62,145.53,15.5787336]
[1768349396172,11.08097334,145.62,145.57,0.05007871]
[1768349401379,17.26457334,145.62,145.57,0.05007871]
[1768349402177,98.80833595,145.66,145.57,0.05007871]
[1768349402381,17.41926215,145.61,145.57,0.05007871]
[1768349402879,17.41926215,145.61,145.53,12.93659765]
[1768349403276,0.04683228,145.6,145.53,12.93659765]
[1768349403680,0.04683228,145.6,145.53,19.12389765]
[1768349405284,0.04683228,145.6,145.53,20.81664629]
[1768349407584,0.04683228,145.6,145.53,14.62934629]
[1768349409586,0.04683228,145.6,145.55,13.47019717]
[1768349409983,11.43452375,145.63,145.57,13.47019717]
[1768349410182,11.43452375,145.65,145.59,15.16294581]
[1768349410380,1.69274864,145.69,145.59,15.16294581]
[1768349410381,11.45673482,145.68,145.59,15.16294581]
[1768349410683,17.63813482,145.68,145.6,19.65449717]
[1768349410987,11.45673482,145.68,145.61,15.16294581]
[1768349411283,13.14948346,145.72,145.62,19.65369717]
[1768349411479,11.45673482,145.72,145.63,15.21042763]
[1768349412082,11.45673482,145.72,145.63,13.47019717]
[1768349412282,11.45673482,145.72,145.63,15.16294581]
[1768349412484,11.45673482,145.72,145.66,0.04522791]
[1768349412685,17.63603482,145.72,145.66,0.04522791]